bitfinex-derivatives/quotes_ETHF0:USTF0_20220103
["timestamp","ask_amount","ask_price","bid_price","bid_amount"]
[1641193150372,0.229991,3798.7,3798.6,1.19263262]
[1641193150572,1.47948767,3798.7,3798.6,1.19263262]
[1641193151773,1.24949667,3798.7,3798.6,1.19263262]
[1641193152874,1.47948767,3798.7,3798.6,1.19263262]
[1641193154078,1.24949667,3798.7,3798.6,1.19263262]
[1641193155482,1.47948767,3798.7,3798.6,1.19263262]
[1641193158886,1.24949667,3798.7,3798.6,1.19263262]
[1641193159288,1.17871797,3798.8,3798.6,1.19263262]
[1641193161892,1.17871797,3798.9,3798.6,1.19263262]
[1641193163191,0.229991,3798.8,3798.6,1.19263262]
[1641193163391,0.88831666,3798.7,3798.6,1.19263262]
[1641193164490,1.17871797,3799.0,3798.6,1.19263262]
[1641193164692,1.17871797,3798.9,3798.5,1.19263262]
[1641193165294,0.88825367,3798.6,3798.5,1.19263262]
[1641193166392,0.88825367,3798.6,3798.5,1.98240137]
[1641193166797,0.88825367,3798.6,3798.5,0.78976875]
[1641193166994,0.88825367,3798.7,3798.5,0.78976875]
[1641193168896,1.17871797,3799.0,3798.5,0.78976875]
[1641193168897,0.88825367,3798.8,3798.5,0.78976875]
[1641193170298,0.229991,3798.7,3798.5,0.78976875]
[1641193170496,0.88825367,3798.8,3798.5,0.78976875]
[1641193170897,0.88825367,3798.7,3798.5,0.78976875]
[1641193171097,1.17871797,3799.0,3798.5,0.78976875]
[1641193171298,2.51095246,3799.6,3798.7,0.78973592]
[1641193171503,2.61447633,3799.9,3799.2,0.78962116]
[1641193171899,2.61447633,3799.9,3799.3,4.211024]
[1641193172098,2.61447633,3799.9,3799.8,0.78949976]
[1641193172601,0.3878,3799.9,3799.8,0.78949976]
[1641193173200,0.3878,3799.9,3799.8,2.79428976]
[1641193175303,24.66759,3800.9,3799.8,2.79428976]
[1641193177506,26.89426633,3800.9,3799.8,2.79428976]
[1641193177907,1.4999,3800.6,3799.8,2.79428976]
[1641193178106,0.128157,3800.5,3799.8,2.79428976]
[1641193179109,24.66759,3800.9,3799.8,2.79428976]
[1641193180713,1.48313137,3800.7,3799.8,2.79428976]
[1641193181612,0.128157,3800.6,3799.8,2.79428976]
[1641193182613,1.61128837,3800.6,3799.8,2.79428976]
[1641193183114,1.18666885,3800.4,3799.8,2.79428976]
[1641193184215,1.18666885,3800.3,3799.8,2.79428976]
[1641193186716,1.18666885,3800.3,3800.0,1.19200137]
[1641193187217,0.229991,3800.2,3800.0,1.19200137]
[1641193187418,1.18666885,3800.3,3800.0,1.19200137]
[1641193188021,1.18666885,3800.3,3799.9,1.19200137]
[1641193190722,1.18666885,3800.3,3800.2,1.92156555]
[1641193190921,0.55919178,3800.8,3800.2,1.92156555]
[1641193191835,2.00479,3800.9,3800.2,1.92156555]
[1641193193324,2.89120398,3800.9,3800.2,1.92156555]
[1641193193925,2.89120398,3800.9,3800.2,2.46106555]
[1641193194524,0.88641398,3800.8,3800.2,2.46106555]
[1641193195725,2.00479,3800.9,3800.2,2.46106555]
[1641193197528,2.00479,3800.9,3800.2,4.46585555]
[1641193198227,2.00479,3800.9,3800.3,4.209916]
[1641193198630,2.00479,3800.9,3800.2,3.92635555]
[1641193199432,2.00479,3800.9,3800.3,4.209916]
[1641193200132,2.00479,3800.9,3800.2,3.92635555]
[1641193200831,2.132947,3800.9,3800.3,4.209916]
[1641193201134,2.132947,3800.9,3800.2,3.92635555]
[1641193201732,2.132947,3800.9,3799.8,2.00479]
[1641193201733,1.4999,3800.6,3799.8,2.00479]
[1641193201934,2.3038,3800.6,3799.8,2.00479]
[1641193202834,1.4999,3800.3,3799.8,2.00479]
[1641193203135,1.4999,3800.5,3799.8,2.00479]
[1641193203335,1.4999,3800.3,3799.8,2.00479]
[1641193203536,1.4999,3800.0,3799.8,2.00479]
[1641193203738,0.358148,3799.9,3799.3,2.00479]
[1641193203936,0.358148,3799.9,3799.3,0.68889]
[1641193205236,1.4999,3799.4,3799.1,0.89022166]
[1641193205437,1.4999,3799.2,3799.1,0.89022166]
[1641193206137,0.229991,3799.3,3799.1,0.89022166]
[1641193206840,0.229991,3799.3,3798.8,2.00479]
[1641193210041,0.229991,3799.3,3798.4,2.89501166]
[1641193210444,1.4999,3799.1,3798.4,2.89501166]
[1641193210644,0.128157,3799.0,3798.4,2.89501166]
[1641193212243,0.128157,3799.0,3798.4,2.00479]
[1641193215544,0.128157,3799.0,3798.2,0.89022166]
[1641193215844,2.00479,3798.8,3798.1,0.89022166]
[1641193218349,2.00479,3798.8,3798.0,0.89022166]
[1641193221953,2.00479,3798.8,3798.1,0.89022166]
[1641193222151,2.00479,3798.8,3798.1,1.71022166]
[1641193223355,2.00479,3798.8,3798.2,0.89022166]
[1641193224556,2.00479,3798.8,3798.1,0.82]
[1641193224757,0.88641398,3798.7,3798.3,1.78795134]
[1641193226359,0.88641398,3798.7,3798.4,1.78795134]
[1641193226558,0.229991,3798.6,3798.4,1.78795134]
[1641193226963,0.229991,3798.6,3798.2,0.89004708]
[1641193228662,2.00479,3798.8,3798.2,0.89004708]
[1641193229364,2.00479,3798.8,3798.1,0.89004708]
[1641193234473,2.00479,3798.8,3798.0,0.89004708]
[1641193235674,2.00479,3798.8,3798.1,0.89004708]
[1641193241179,2.00479,3798.8,3798.0,0.89004708]
[1641193242079,2.00479,3798.4,3798.0,0.89004708]
[1641193249888,2.89120398,3798.4,3797.7,1.7787353]
[1641193250091,2.89120398,3798.4,3798.1,1.78795134]
[1641193250289,0.229991,3798.3,3798.1,1.78795134]
[1641193250690,2.89120398,3798.4,3798.1,1.78795134]
[1641193250890,2.89120398,3798.4,3797.9,1.78795134]
[1641193250891,2.00479,3798.4,3797.9,1.78795134]
[1641193253794,2.00479,3798.4,3798.2,0.78984486]
[1641193254396,2.234781,3798.4,3798.2,0.78984486]
[1641193254597,2.00479,3798.4,3798.2,0.78984486]
[1641193256297,0.229991,3798.3,3798.2,0.78984486]
[1641193257098,2.00479,3798.4,3798.2,0.78984486]
[1641193258705,0.229991,3798.3,3798.2,0.78984486]
[1641193259304,2.00479,3798.4,3798.2,1.16280256]
[1641193259503,2.234781,3798.4,3798.2,1.16280256]
[1641193259705,2.00479,3798.4,3798.2,1.16280256]
[1641193260106,2.00479,3798.4,3798.2,0.78984486]
[1641193261210,0.229991,3798.3,3798.2,0.78984486]
[1641193261813,2.00479,3798.4,3798.2,0.78984486]
[1641193262614,2.234781,3798.4,3798.2,0.78984486]
[1641193263714,2.00479,3798.4,3798.2,0.78984486]
[1641193264816,0.229991,3798.3,3798.2,0.78984486]
[1641193265521,2.00479,3798.4,3798.2,0.78984486]
[1641193266921,0.229991,3798.3,3798.2,0.78984486]
[1641193267122,2.00479,3798.4,3798.3,1.88760875]
[1641193267322,2.00479,3798.4,3798.2,0.78984486]
[1641193267523,2.00479,3798.4,3798.2,1.01983586]
[1641193270326,0.88641398,3798.7,3798.2,1.01983586]
[1641193270531,1.18666885,3799.0,3798.6,2.00479]
[1641193270726,1.18666885,3799.0,3798.7,0.122356]
[1641193271028,1.18666885,3799.0,3798.8,0.229991]
[1641193271427,1.48313137,3799.8,3798.8,1.54495516]
[1641193271627,1.78176619,3800.1,3799.4,1.5]
[1641193271828,1.78176619,3800.1,3799.5,0.122356]
[1641193272226,1.34446619,3800.1,3799.5,0.122356]
[1641193272426,1.15706619,3800.1,3799.5,0.122356]
[1641193272628,1.15706619,3800.1,3800.0,2.16081463]
[1641193272927,2.22667633,3800.3,3800.0,2.39080563]
[1641193273430,2.00479,3800.5,3800.0,2.39080563]
[1641193275530,2.00479,3800.5,3800.0,3.09880563]
[1641193278536,2.00479,3800.9,3800.0,3.09880563]
[1641193279537,1.31482239,3801.4,3800.0,3.09880563]
[1641193280237,0.55914108,3801.0,3800.0,3.09880563]
[1641193280639,0.55914108,3801.0,3800.9,2.00479]
[1641193280839,0.63575008,3801.0,3800.9,2.00479]
[1641193281239,0.55914108,3801.0,3800.9,2.234781]
[1641193281840,0.63575008,3801.0,3800.9,2.00479]
[1641193282640,0.076609,3801.0,3800.9,2.00479]
[1641193282842,0.204766,3801.0,3800.9,2.00479]
[1641193283944,0.76390708,3801.0,3800.9,2.00479]
[1641193284141,0.63575008,3801.0,3800.9,2.00479]
[1641193286549,0.076609,3801.0,3800.9,2.00479]
[1641193287047,1.18672078,3801.1,3800.9,2.234781]
[1641193287248,0.076609,3801.0,3800.9,2.00479]
[1641193287546,1.18672078,3801.4,3800.9,2.00479]
[1641193288049,0.128157,3801.3,3800.9,2.00479]
[1641193290851,0.88920657,3801.2,3800.9,2.00479]
[1641193291051,0.076609,3801.1,3800.9,2.00479]
[1641193291551,0.076609,3801.1,3800.9,2.234781]
[1641193291752,0.076609,3801.1,3800.9,2.00479]
[1641193293752,0.047709,3801.1,3800.9,2.00479]
[1641193294654,0.047709,3801.1,3800.9,2.234781]
[1641193294856,2.00479,3801.4,3800.9,2.234781]
[1641193295553,2.00479,3801.4,3800.9,2.00479]
[1641193297257,2.132947,3801.4,3800.9,2.00479]
[1641193298756,2.00479,3801.4,3800.9,2.00479]
[1641193299857,2.132947,3801.4,3800.9,2.00479]
[1641193302469,1.4999,3801.3,3800.9,2.00479]
[1641193302672,2.132947,3801.4,3800.9,2.00479]
[1641193303770,2.00479,3801.4,3800.9,2.00479]
[1641193308777,1.4999,3801.3,3800.9,2.00479]
[1641193308977,2.00479,3801.4,3800.9,2.00479]
[1641193312784,2.89399657,3801.4,3800.9,2.00479]
[1641193312999,1.4999,3801.3,3800.9,2.00479]
[1641193313185,2.2975,3801.3,3800.9,2.00479]
[1641193313387,2.425657,3801.3,3800.9,2.00479]
[1641193314684,0.7976,3801.3,3800.9,2.00479]
[1641193316089,2.89399657,3801.4,3800.9,2.00479]
[1641193317989,1.628057,3801.3,3800.9,2.00479]
[1641193318591,0.128157,3801.3,3800.9,2.00479]
[1641193318790,1.4999,3801.2,3800.9,2.00479]
[1641193318988,0.047709,3801.1,3800.9,2.00479]
[1641193319588,1.4999,3801.2,3801.0,0.229991]
[1641193319789,0.047709,3801.1,3800.9,2.00479]
[1641193319988,0.128157,3801.3,3800.9,2.00479]
[1641193320190,1.01736357,3801.3,3800.9,2.00479]
[1641193320390,1.4999,3801.0,3800.5,2.47652083]
[1641193320589,1.01736357,3801.3,3800.3,0.89080645]
[1641193320789,1.4999,3800.4,3800.3,0.89080645]
[1641193320989,3.61663769,3800.4,3800.3,0.89080645]
[1641193321192,3.61663769,3800.4,3800.0,0.89080645]
[1641193321391,1.4999,3800.2,3800.0,0.89080645]
[1641193321589,2.06902869,3800.4,3800.0,0.89080645]
[1641193321890,2.06902869,3800.4,3799.7,3.19387655]
[1641193322090,2.06902869,3800.4,3799.7,2.769083]
[1641193322691,2.06902869,3800.4,3799.7,1.57999645]
[1641193324693,0.753857,3800.4,3799.7,1.57999645]
[1641193325693,1.31520974,3800.3,3799.7,1.57999645]
[1641193326094,0.753857,3800.4,3799.7,1.57999645]
[1641193326496,0.128157,3800.4,3799.7,1.57999645]
[1641193327495,1.628057,3800.4,3799.7,1.57999645]
[1641193327694,1.4999,3800.2,3799.7,1.57999645]
[1641193327894,0.128157,3800.4,3799.7,1.57999645]
[1641193330102,1.4999,3800.1,3799.7,1.57999645]
[1641193332900,0.5592523,3800.0,3799.7,1.57999645]
[1641193333101,0.047709,3799.9,3799.7,2.769083]
[1641193333802,1.547609,3799.9,3799.7,1.18908655]
[1641193334204,0.5592523,3799.8,3799.7,1.18908655]
[1641193334402,0.5592523,3799.8,3799.3,1.87797655]
[1641193334802,1.4999,3799.7,3799.3,1.87797655]
[1641193335004,0.128157,3799.6,3799.3,1.87797655]
[1641193335206,0.047709,3799.5,3799.3,1.87797655]
[1641193335602,1.547609,3799.5,3799.3,1.87797655]
[1641193335803,0.047709,3799.5,3799.3,1.87797655]
[1641193337010,0.5592523,3799.4,3799.3,1.87797655]
[1641193339009,0.5592523,3799.4,3799.3,2.10796755]
[1641193339411,0.6069613,3799.4,3799.3,1.87797655]
[1641193339608,0.5592523,3799.4,3799.3,1.87797655]
[1641193339810,0.5592523,3799.5,3799.3,1.87797655]
[1641193340408,0.047709,3799.4,3799.3,1.87797655]
[1641193343612,0.128157,3799.6,3799.3,2.10796755]
[1641193344212,2.89099179,3800.1,3799.3,2.10796755]
[1641193344412,0.128157,3800.0,3799.3,2.10796755]
[1641193345113,0.128157,3800.0,3799.3,0.229991]
[1641193345514,1.31533603,3799.9,3799.2,2.00479]
[1641193348215,1.4999,3799.6,3799.2,2.00479]
[1641193348414,2.02883603,3799.9,3799.2,2.00479]
[1641193351119,1.31533603,3799.9,3799.2,2.00479]
[1641193354225,1.4999,3799.7,3799.2,2.00479]
[1641193354624,1.4999,3799.7,3798.8,0.86094114]
[1641193355626,2.00479,3798.9,3798.8,0.86094114]
[1641193355826,2.00479,3798.9,3798.8,1.09093214]
[1641193356425,1.08978397,3798.9,3798.8,1.09093214]
[1641193358327,1.08978397,3798.9,3798.8,0.229991]
[1641193359329,1.08978397,3798.9,3798.5,0.88996013]
[1641193359528,1.08978397,3798.9,3798.4,0.88996013]
[1641193361234,0.6315,3799.2,3798.4,0.88996013]
[1641193361430,0.6315,3799.2,3798.5,0.88996013]
[1641193361630,0.759657,3799.2,3798.5,0.88996013]
[1641193361831,0.6315,3799.2,3798.8,2.00479]
[1641193362031,2.00479,3799.7,3798.8,2.00479]
[1641193363831,0.128157,3799.6,3798.8,2.00479]
[1641193364938,0.128157,3799.6,3798.8,2.89475013]
[1641193366636,0.128157,3799.6,3798.8,0.88996013]
[1641193367738,0.128157,3799.6,3799.0,2.00479]
[1641193369739,1.628057,3799.6,3799.0,2.00479]
[1641193371142,0.128157,3799.6,3799.0,2.00479]
[1641193371342,1.628057,3799.6,3799.0,2.00479]
[1641193372043,0.128157,3799.6,3799.0,2.00479]
[1641193372444,0.128157,3799.6,3799.5,0.88996013]
[1641193372644,0.175866,3799.6,3799.5,0.88996013]
[1641193373844,1.675766,3799.6,3799.2,1.18660353]
[1641193374047,3.50469,3799.4,3799.2,1.18660353]
[1641193374245,0.047709,3799.3,3799.2,1.18660353]
[1641193375144,0.047709,3799.3,3799.1,1.18660353]
[1641193376044,0.047709,3799.3,3798.7,2.00479]
[1641193376045,0.047709,3799.3,3799.2,1.18660353]
[1641193379450,2.00479,3799.4,3799.2,1.41659453]
[1641193379648,2.00479,3799.4,3799.2,1.18660353]
[1641193380451,0.047709,3799.3,3799.2,1.18660353]
[1641193384856,0.047709,3799.3,3798.7,3.65890798]
[1641193386258,0.047709,3799.3,3798.7,1.87529353]
[1641193387759,0.047709,3799.3,3798.4,1.78361445]
[1641193387960,0.55924414,3799.2,3798.4,1.78361445]
[1641193388360,0.55924414,3799.2,3798.6,2.00479]
[1641193389762,0.55924414,3799.4,3798.6,2.00479]
[1641193393075,0.55924414,3799.4,3798.7,0.37286535]
[1641193394175,0.88916949,3799.1,3798.7,0.37286535]
[1641193394776,0.88916949,3799.1,3798.6,2.00479]
[1641193395576,0.88916949,3799.1,3798.7,0.37286652]
[1641193395776,0.88916949,3799.1,3798.6,2.00479]
[1641193396381,0.88916949,3799.1,3799.0,1.1918154]
[1641193396579,0.93687849,3799.1,3799.0,1.1918154]
[1641193396980,0.88916949,3799.1,3799.0,1.4218064]
[1641193397180,0.88916949,3799.1,3799.0,1.1918154]
[1641193397580,0.93687849,3799.1,3799.0,1.1918154]
[1641193399482,0.88916949,3799.1,3799.0,1.4218064]
[1641193399883,0.93687849,3799.1,3799.0,1.1918154]
[1641193400085,0.88916949,3799.1,3799.0,1.1918154]
[1641193400984,0.93687849,3799.1,3799.0,1.1918154]
[1641193401183,0.88916949,3799.1,3799.0,1.4218064]
[1641193401786,0.88916949,3799.1,3799.0,1.1918154]
[1641193402186,1.74487181,3799.4,3799.0,1.1918154]
[1641193402187,0.88916949,3799.2,3799.0,1.1918154]
[1641193402788,0.047709,3799.1,3799.0,1.1918154]
[1641193403689,0.88916949,3799.2,3799.0,1.1918154]
[1641193404090,0.88916949,3799.2,3799.0,1.4218064]
[1641193404694,3.19042026,3799.5,3799.0,1.5441624]
[1641193404695,0.88916949,3799.1,3799.0,1.5441624]
[1641193404895,1.18563026,3799.4,3799.0,0.352347]
[1641193405092,1.18563026,3799.4,3799.0,1.852347]
[1641193405493,1.18563026,3799.4,3799.1,0.37280388]
[1641193405692,1.18563026,3799.4,3799.2,0.229991]
[1641193406093,0.55916415,3799.8,3799.2,0.229991]
[1641193406695,0.55916415,3799.8,3799.2,2.234781]
[1641193407097,0.128157,3799.7,3799.4,1.19124373]
[1641193407294,0.047709,3799.6,3799.4,1.19124373]
[1641193407496,0.800357,3799.7,3799.5,0.229991]
[1641193407696,0.6722,3799.7,3799.5,0.229991]
[1641193407896,0.6722,3799.7,3799.4,1.19124373]
[1641193408798,0.55916415,3799.5,3799.2,3.19603373]
[1641193409297,0.55916415,3799.6,3799.2,3.19603373]
[1641193410500,0.128157,3799.5,3799.2,3.19603373]
[1641193410699,0.047709,3799.4,3799.2,3.19603373]
[1641193411501,0.047709,3799.4,3799.2,2.00479]
[1641193412601,1.18563026,3799.5,3799.3,0.229991]
[1641193412801,0.047709,3799.4,3799.2,2.00479]
[1641193413601,0.047709,3799.4,3799.2,2.234781]
[1641193413803,0.047709,3799.4,3799.2,2.00479]
[1641193414001,0.128157,3799.6,3799.2,2.00479]
[1641193414206,1.18563026,3799.6,3799.2,2.00479]
[1641193415604,0.6722,3799.7,3799.2,3.19603373]
[1641193415605,1.85783026,3799.7,3799.2,3.19603373]
[1641193418006,0.6722,3799.7,3799.2,3.19603373]
[1641193418207,1.18563026,3799.8,3799.2,3.19603373]
[1641193418806,1.18563026,3799.8,3799.3,1.19124373]
[1641193420108,1.18563026,3799.8,3799.4,1.19124373]
[1641193423812,1.18563026,3799.7,3799.3,1.19124373]
[1641193425014,1.18563026,3799.6,3799.2,2.00479]
[1641193425914,2.07429529,3799.6,3799.5,0.89333979]
[1641193426114,0.93637403,3799.6,3799.5,0.89333979]
[1641193427516,0.047709,3799.6,3799.4,0.89333979]
[1641193427715,0.047709,3799.6,3799.1,1.19124373]
[1641193428217,1.74487067,3799.5,3798.9,1.19124373]
[1641193429720,1.18563026,3799.4,3798.9,1.19124373]
[1641193431718,1.18563026,3799.4,3798.8,1.19124373]
[1641193432516,1.18563026,3799.4,3798.6,1.87993373]
[1641193432719,1.18563026,3799.4,3798.9,1.19123407]
[1641193433618,0.55924041,3799.6,3798.9,1.19123407]
[1641193434822,0.55924041,3799.7,3798.9,1.19123407]
[1641193436821,2.04271279,3799.7,3798.9,1.19123407]
[1641193438728,1.31545196,3799.6,3798.9,1.19123407]
[1641193439524,1.48347238,3799.7,3798.9,1.19123407]
[1641193439724,0.55924041,3799.5,3798.9,1.19123407]
[1641193440328,1.31545196,3799.6,3798.9,1.19123407]
[1641193441331,1.48347238,3799.7,3798.9,1.19123407]
[1641193441531,0.55924041,3799.5,3798.9,1.19123407]
[1641193442233,1.48347238,3799.7,3798.9,1.19123407]
[1641193443034,3.19110099,3799.4,3798.9,1.19123407]
[1641193443835,0.55924041,3799.3,3798.9,1.19123407]
[1641193445939,1.10944041,3799.3,3798.9,1.19123407]
[1641193447336,1.10944041,3799.3,3798.8,1.19123407]
[1641193447337,0.55924041,3799.2,3798.8,1.19123407]
[1641193447740,0.128157,3799.1,3798.8,1.19123407]
[1641193448037,0.047709,3799.0,3798.8,1.19123407]
[1641193448838,0.128157,3799.1,3798.8,1.19123407]
[1641193449139,0.047709,3799.0,3798.8,1.19123407]
[1641193450939,0.88936533,3799.1,3798.9,0.229991]
[1641193451941,0.047709,3799.1,3798.9,0.229991]
[1641193452140,0.047709,3799.1,3798.8,1.19123407]
[1641193453139,0.047709,3799.1,3798.9,1.19123407]
[1641193453942,0.047709,3799.0,3798.8,1.19123407]
[1641193454142,0.88936533,3799.2,3798.8,1.19123407]
[1641193454744,0.88936533,3799.1,3798.8,1.19123407]
[1641193454944,0.88936533,3799.1,3798.9,1.42122507]
[1641193455144,0.047709,3799.0,3798.9,1.19123407]
[1641193457848,0.60702643,3799.0,3798.9,0.89394289]
[1641193458749,0.60702643,3799.0,3798.6,3.0711678]
[1641193459049,0.60702643,3799.0,3798.7,1.19123407]
[1641193459749,0.047709,3799.0,3798.9,0.89392897]
[1641193459949,0.047709,3799.0,3798.7,1.19123407]
[1641193460750,0.047709,3799.0,3798.6,3.0711678]
[1641193461553,1.23401999,3799.0,3798.6,1.87993373]
[1641193463252,1.18631099,3798.9,3798.6,1.87993373]
[1641193463452,0.047709,3798.8,3798.6,1.87993373]
[1641193467359,0.047709,3798.8,3798.7,1.19123407]
[1641193469861,0.047709,3798.8,3798.6,1.87993373]
[1641193470563,1.18631099,3799.0,3798.7,0.229991]
[1641193470763,1.18631099,3799.0,3798.6,1.87993373]
[1641193471965,1.18631099,3799.1,3798.6,3.0711678]
[1641193475369,1.18631099,3799.1,3798.7,1.19123407]
[1641193476972,1.48347238,3799.2,3798.6,1.87993373]
[1641193476973,1.18631099,3798.9,3798.6,1.87993373]
[1641193477171,1.18631099,3798.9,3798.7,0.229991]
[1641193477471,1.18631099,3798.9,3798.6,1.87993373]
[1641193479371,0.047709,3798.8,3798.6,1.87993373]
[1641193479574,1.18631099,3798.9,3798.7,0.229991]
[1641193479771,1.18631099,3798.9,3798.5,1.19123407]
[1641193479972,1.48347238,3799.0,3798.7,1.19123407]
[1641193480570,1.48347238,3799.0,3798.8,0.229991]
[1641193480973,3.48826238,3799.2,3798.8,0.229991]
[1641193481172,3.48826238,3799.2,3798.8,1.42122507]
[1641193482274,2.00479,3799.2,3799.0,1.19123407]
[1641193482470,2.00479,3799.2,3799.1,0.229991]
[1641193482671,2.00479,3799.2,3799.0,1.19123407]
[1641193483472,2.052499,3799.2,3799.0,1.19123407]
[1641193483671,2.00479,3799.2,3799.0,1.19123407]
[1641193484273,2.00479,3799.2,3799.1,0.229991]
[1641193485074,2.00479,3799.2,3799.1,1.42122507]
[1641193485676,2.00479,3799.6,3799.1,1.42122507]
[1641193488078,2.00479,3799.6,3799.4,1.19123407]
[1641193488277,2.00479,3799.6,3799.5,0.229991]
[1641193488477,2.00479,3799.6,3799.5,0.949291]
[1641193489279,3.36795961,3799.6,3799.4,1.19123407]
[1641193489481,1.4999,3799.5,3799.4,1e-08]
[1641193489680,14.10555272,3799.5,3799.4,1e-08]
[1641193489881,14.10555272,3799.5,3798.4,1.64659978]
[1641193490079,2.00479,3798.7,3798.4,1.64659978]
[1641193490282,2.872699,3798.7,3798.6,0.90817642]
[1641193490680,2.872699,3798.7,3798.3,2.97270162]
[1641193491082,2.872699,3798.7,3798.0,1.78942757]
[1641193491282,0.128157,3798.6,3798.0,1.78942757]
[1641193492182,0.128157,3798.6,3797.9,2.75043322]
[1641193492385,0.128157,3798.6,3797.9,2.00479]
[1641193492784,2.00479,3798.7,3797.9,2.00479]
[1641193492984,1.09352308,3798.8,3797.9,2.67589]
[1641193493383,1.31578774,3798.6,3797.9,2.67589]
[1641193494283,1.31578774,3798.6,3798.3,2.00479]
[1641193494485,1.31578774,3798.6,3798.4,0.229991]
[1641193494684,1.36349674,3798.6,3798.3,2.00479]
[1641193497392,0.55936929,3798.5,3798.3,2.00479]
[1641193497993,0.55936929,3798.5,3798.4,0.229991]
[1641193498192,0.55936929,3798.5,3798.3,2.00479]
[1641193498793,0.55936929,3798.5,3798.4,0.229991]
[1641193499594,0.89083383,3798.5,3798.4,0.229991]
[1641193500994,0.89083383,3798.5,3798.3,2.00479]
[1641193501195,0.89083383,3798.6,3798.4,0.229991]
[1641193501693,0.047709,3798.5,3798.3,2.00479]
[1641193502194,0.89083383,3798.6,3798.4,0.229991]
[1641193502796,1.06669983,3798.6,3798.4,0.229991]
[1641193502995,1.06669983,3798.6,3798.3,2.00479]
[1641193503594,0.89083383,3798.5,3798.4,0.229991]
[1641193505297,0.89083383,3798.6,3798.4,0.229991]
[1641193505695,0.047709,3798.5,3798.3,2.00479]
[1641193505895,0.89083383,3798.6,3798.3,2.234781]
[1641193507199,0.89083383,3798.4,3798.3,2.234781]
[1641193508000,0.89083383,3798.4,3798.3,2.00479]
[1641193508200,0.93854283,3798.4,3798.3,2.00479]
[1641193508701,0.89083383,3798.4,3798.3,2.234781]
[1641193509101,0.55937296,3798.4,3798.3,2.234781]
[1641193509303,0.60708196,3798.4,3798.3,2.00479]
[1641193510004,0.047709,3798.4,3798.3,2.00479]
[1641193510605,1.74718068,3798.6,3798.3,2.234781]
[1641193510806,1.74718068,3798.6,3798.3,2.00479]
[1641193511208,1.74718068,3798.6,3798.0,2.38812344]
[1641193511406,0.55937296,3798.4,3798.0,2.38812344]
[1641193512207,0.89045797,3798.3,3798.0,2.38812344]
[1641193512408,0.89045797,3798.3,3798.1,0.229991]
[1641193513410,0.89045797,3798.2,3798.1,0.229991]
[1641193514011,1.74718068,3798.5,3798.1,0.229991]
[1641193514212,1.18780772,3798.4,3798.1,0.229991]
[1641193515113,1.18780772,3798.3,3798.1,0.229991]
[1641193515312,1.18780772,3798.3,3798.0,2.38812344]
[1641193515715,1.48444891,3798.3,3798.0,2.38812344]
[1641193516117,0.047709,3798.2,3798.0,2.38812344]
[1641193516316,0.047709,3798.2,3797.9,2.00479]
[1641193517016,0.55937296,3798.1,3797.9,2.00479]
[1641193517415,0.55937296,3798.1,3797.9,2.234781]
[1641193517616,0.047709,3798.0,3797.9,2.00479]
[1641193518018,1.23240208,3798.0,3797.9,2.00479]
[1641193519115,1.18469308,3798.0,3797.9,2.00479]
[1641193519518,1.74406604,3798.0,3797.9,2.00479]
[1641193519716,1.79177504,3798.0,3797.9,2.00479]
[1641193520317,1.74406604,3798.0,3797.9,2.234781]
[1641193520519,1.74406604,3798.0,3797.9,2.00479]
[1641193520716,1.79177504,3798.0,3797.9,2.00479]
[1641193520917,1.74406604,3798.0,3797.9,2.00479]
[1641193521317,1.18469308,3798.0,3797.9,2.234781]
[1641193521518,1.23240208,3798.0,3797.9,2.00479]
[1641193522220,1.79177504,3798.0,3797.9,2.00479]
[1641193523122,1.74406604,3798.0,3797.9,2.234781]
[1641193523521,1.79177504,3798.0,3797.9,2.00479]
[1641193525725,0.60708196,3798.0,3797.9,2.00479]
[1641193526123,0.60708196,3798.0,3797.9,3.19829444]
[1641193527023,0.047709,3798.0,3797.9,3.19829444]
[1641193527224,0.047709,3798.0,3797.9,2.00479]
[1641193527424,0.7909,3798.4,3797.9,2.234781]
[1641193527623,2.1997375,3798.6,3797.9,2.00479]
[1641193529425,0.88394976,3798.6,3798.3,1.5]
[1641193529624,0.88394976,3798.6,3798.4,0.229991]
[1641193529825,0.88394976,3798.6,3798.5,2.25601218]
[1641193530726,0.88394976,3798.6,3798.5,4.26080218]
[1641193530927,1.17859967,3798.9,3798.5,4.26080218]
[1641193531127,2.00479,3799.1,3798.5,4.26080218]
[1641193531325,0.128157,3799.0,3798.5,2.00479]
[1641193532928,21.33754976,3799.4,3798.5,2.00479]
[1641193533128,21.33754976,3799.4,3798.5,4.07412635]
[1641193533327,0.128157,3799.3,3798.5,4.07412635]
[1641193535433,1.31559213,3799.2,3798.5,4.07412635]
[1641193535834,0.128157,3799.3,3798.5,4.07412635]
[1641193537635,1.44372317,3799.3,3798.5,2.00479]
[1641193539242,2.32767293,3799.3,3798.5,2.00479]
[1641193539644,3.12462036,3799.3,3798.5,2.00479]
[1641193540443,0.88394976,3799.2,3798.5,2.00479]
[1641193540641,1.48444976,3799.2,3798.5,2.00479]
[1641193541146,1.48444976,3799.2,3799.1,2.00479]
[1641193541343,1.53215876,3799.2,3799.1,2.00479]
[1641193542144,0.93165876,3799.2,3799.1,2.00479]
[1641193542349,0.047709,3799.2,3799.1,2.00479]
[1641193543545,1.44372317,3799.3,3799.1,2.234781]
[1641193543746,0.047709,3799.2,3799.1,2.00479]
[1641193544447,0.60702657,3799.2,3799.1,2.00479]
[1641193545845,0.60702657,3799.2,3799.1,2.89517635]
[1641193546647,0.60702657,3799.2,3799.1,2.00479]
[1641193546846,2.38869423,3799.2,3799.1,2.00479]
[1641193547645,2.34098523,3799.2,3799.1,2.00479]
[1641193547846,2.61919054,3799.5,3799.1,2.234781]
[1641193547847,2.22659054,3799.4,3799.1,2.234781]
[1641193548047,2.22659054,3799.4,3799.1,2.748581]
[1641193549248,0.3926,3799.5,3799.2,0.89038635]
[1641193549448,2.17066868,3799.5,3799.2,0.89038635]
[1641193550651,0.047709,3799.4,3799.2,0.89038635]
[1641193550851,2.17066868,3799.5,3799.3,1.12037735]
[1641193551052,0.3926,3799.5,3799.3,0.89038635]
[1641193551950,0.3926,3799.5,3799.4,0.229991]
[1641193552149,0.440309,3799.5,3799.3,0.89038635]
[1641193552349,1.215709,3799.5,3799.3,0.89038635]
[1641193552751,1.168,3799.5,3799.4,0.89038635]
[1641193552952,1.215709,3799.5,3799.4,0.89038635]
[1641193553857,1.215709,3799.5,3799.2,0.89486555]